[Event "FIDE WCCC G12 2018"]
[Site "Santiago de Compostela"]
[Date "2018.11.11"]
[Round "7"]
[White "Kairbekova, Amina"]
[Black "Zvereva, Margarita"]
[Result "1/2-1/2"]
[ECO "B92"]
[WhiteElo "1939"]
[BlackElo "1787"]
[Annotator "NA RC"]
[PlyCount "99"]
[EventDate "2018.11.04"]
[EventType "swiss"]
[EventCountry "ESP"]
[SourceTitle "playchess.com"]
[Source "ChessBase"]
[SourceQuality "1"]
[TimeControl "40/5400+30:1800+30"]

{[%evp 13,99,14,32767,32767,32767,32767,32767,-22,-23,-38,32767,-58,-61,-43,32767,32767,32767,32767,32767,-76,32767,32767,-66,32767,-67,-77,-55,-75,32767,32767,32767,-72,-65,32767,32767,32767,32767,32767,32767,-150,32767,32767,-60,32767,32767,-91,32767,-174,32767,32767,-124,-130,-109,-129,-119,-124,-84,-96,-103,-100,-91,-119,-21,32767,0,32767,0,0,0,0,0,32767,32767,-45,0,32767,0,0,32767,32767,32767,32767,0,32767,32767,0,0,0]} 1. e4 {[%emt 0:00:00]} c5 {[%emt 0:00:00]} 2. Nf3 {[%emt 0:00:02]} d6 {[%emt 0:00:00]} 3. d4 {[%emt 0:00:07]} cxd4 {[%emt 0:00:00]} 4. Nxd4 {[%emt 0:00:06]} Nf6 {[%emt 0:00:00]} 5. Nc3 {[%emt 0:00:08]} a6 {[%emt 0:00:00]} 6. Be2 {[%emt 0:01:28]} e5 {[%emt 0:00:14]} 7. Nb3 {[%emt 0:00:35]} Be7 {[%emt 0:00:21]} 8. O-O {[%emt 0:01:12]} O-O {[%emt 0:00:49]} 9. Kh1 {[%emt 0:02:01]} Nbd7 {[%emt 0:04:16]} 10. f4 {[%emt 0:02:13] B92: Sicilian Najdorf: 6 Be2} (10. a4 b6 11. Be3 Bb7 12. f3 Rc8 13. Rf2 Rc7 14. Bf1 Qa8 15. Rd2 Rfc8 16. Nc1 Rxc3 17. bxc3 d5 18. Na2 Nc5 {½-½ (18) Azarov,S (2601)-Zilka,S (2479) Czechia 2011}) 10... b5 {[%emt 0:03:03] LiveBook: 6 Games} 11. Bf3 {[%emt 0:05:31]} Bb7 {[%emt 0:00:35]} 12. Re1 {[%emt 0:04:04]} b4 $146 {[%emt 0:09:46]} ({Predecessor:} 12... Rc8 13. a4 b4 14. Na2 Nc5 15. Nxc5 dxc5 16. Qxd8 Rfxd8 17. fxe5 Nxe4 {0-1 (44) Ruiz Aguilar,P (2278)-Vivas Zamora,F (2283) San Pedro del Rio 2018}) 13. Nd5 {[%emt 0:00:20]} Nxd5 {[%emt 0:00:13]} 14. exd5 {[%emt 0:00:08]} a5 {[%emt 0:04:30]} 15. fxe5 {[%emt 0:12:51]} Nxe5 {[%emt 0:00:27]} 16. Nd4 {[%emt 0:01:44]} Nxf3 {[%emt 0:02:44]} 17. Qxf3 {[%emt 0:00:07]} Bf6 {[%emt 0:01:16]} 18. Nf5 {[%emt 0:04:13]} Bc8 {[%emt 0:16:57]} 19. Ng3 {[%emt 0:12:47]} Be5 {[%emt 0:03:18]} 20. c3 {[%emt 0:04:49]} bxc3 {[%emt 0:05:10]} 21. bxc3 {[%emt 0:00:05]} Qc7 {[%emt 0:01:44]} 22. Bf4 {[%emt 0:01:23]} f6 {[%emt 0:09:43]} 23. Ne4 {[%emt 0:13:23]} Bb7 {[%emt 0:08:20]} 24. Bxe5 {[%emt 0:03:09]} fxe5 {[%emt 0:00:55]} 25. Qd3 {[%emt 0:00:18]} h6 {[%emt 0:06:00]} 26. Re3 $2 {[%emt 0:07:48]} (26. c4 $11) 26... Ba6 {[%emt 0:03:13]} 27. Qd2 {[%emt 0:00:34]} Qc4 {[%emt 0:03:21]} (27... Bc4 $17 28. Rb1 a4) 28. h3 {[%emt 0:02:11]} Rad8 {[%emt 0:04:44]} 29. Kh2 {[%emt 0:03:43]} Rf4 {[%emt 0:01:44]} 30. Nf2 {[%emt 0:06:13]} (30. Rae1 $17) 30... Rdf8 {[%emt 0:01:48]} 31. Nh1 {[%emt 0:00:45]} Bb7 {[%emt 0:05:05]} (31... a4 $19 32. Rae1 a3) 32. Rd1 {[%emt 0:00:07]} Rf1 {[%emt 0:03:44]} 33. Rxf1 {[%emt 0:02:37]} Rxf1 {[%emt 0:00:20]} 34. Ng3 {[%emt 0:00:03]} Rf8 {[%emt 0:01:46]} 35. Rd3 {[%emt 0:04:10]} Ba6 {[%emt 0:00:39]} 36. Rf3 {[%emt 0:02:27]} Rxf3 {[%emt 0:00:28]} 37. gxf3 {[%emt 0:00:03]} Bc8 {[%emt 0:00:36]} (37... Qc8 $17 38. a3 Qa8) 38. Ne4 {[%emt 0:00:51]} Qf1 {[%emt 0:00:33]} 39. Qg2 {[%emt 0:00:36]} Qa6 {[%emt 0:00:29]} 40. Qg6 {[%emt 0:00:00]} Qe2+ {[%emt 0:00:00]} 41. Kg3 {[%emt 0:02:57]} Qe1+ {[%emt 0:01:55]} 42. Kg2 {[%emt 0:04:15]} Qe2+ {[%emt 0:01:11]} 43. Nf2 {[%emt 0:18:08] [#]} Bxh3+ $1 {[%emt 0:06:39]} 44. Kg3 {[%emt 0:01:04]} Qe1 {[%emt 0:01:08]} 45. Kxh3 {[%emt 0:00:10]} Qxf2 {[%emt 0:00:10]} 46. Qe6+ {[%emt 0:00:03]} Kh7 {[%emt 0:00:41]} 47. Qf5+ {[%emt 0:00:16]} Kg8 {[%emt 0:00:16]} 48. Qc8+ {[%emt 0:00:34]} Kh7 {[%emt 0:00:11]} 49. Qf5+ $11 {[%emt 0:00:09]} Kg8 {[%emt 0:00:09]} 50. Qe6+ {[%emt 0:00:12]} 1/2-1/2

[Event "FIDE WCCC G12 2018"]
[Site "Santiago de Compostela"]
[Date "2018.11.11"]
[Round "7"]
[White "Nadzamova, Viktoria"]
[Black "Francisco Guecamburu, Candela Be"]
[Result "1-0"]
[ECO "B38"]
[WhiteElo "1923"]
[BlackElo "1725"]
[Annotator "NA RC"]
[PlyCount "115"]
[EventDate "2018.11.04"]
[EventType "swiss"]
[EventCountry "ESP"]
[SourceTitle "playchess.com"]
[Source "ChessBase"]
[SourceQuality "1"]
[TimeControl "40/5400+30:1800+30"]

{[%evp 8,109,20,32767,32767,32767,32767,32767,32767,32767,32767,32767,32767,42,55,54,56,29,32767,34,30,21,37,32767,0,-70,32767,-54,32767,-65,-43,-44,32767,-83,-92,-97,-109,-109,-92,-90,-86,-167,-162,-176,-173,-189,-78,32767,27,20,19,32767,39,28,32767,32767,32767,32767,32767,32767,32767,32767,32767,32767,32767,32767,59,32767,32767,57,33,39,32767,32767,32767,32767,32767,32767,76,91,32767,32767,32767,79,91,32767,5293,12329,7288,29983,29981,29985,29985,29986,32767,32767,32767,32767,32767,32767,32767,32767,29990,29990]} 1. e4 {[%emt 0:00:00]} c5 {[%emt 0:00:00]} 2. Nf3 {[%emt 0:00:00]} g6 {[%emt 0:00:00]} 3. d4 {[%emt 0:00:00]} cxd4 {[%emt 0:00:00]} 4. Nxd4 {[%emt 0:00:00]} Bg7 {[%emt 0:00:00]} 5. c4 {[%emt 0:00:19]} Nc6 {[%emt 0:00:14]} 6. Be3 {[%emt 0:00:08]} Nf6 {[%emt 0:00:24]} 7. Nc3 {[%emt 0:00:08]} d6 {[%emt 0:00:37]} 8. Be2 {[%emt 0:01:00]} O-O {[%emt 0:00:37]} 9. O-O {[%emt 0:00:17]} Bd7 {[%emt 0:01:47]} 10. b3 {[%emt 0:08:40]} Nxd4 {[%emt 0:03:08]} 11. Bxd4 {[%emt 0:00:34]} Bc6 {[%emt 0:00:24]} 12. f3 {[%emt 0:01:07] LiveBook: 3 Games} Nd7 {[%emt 0:01:31] B38: Sicilian: Maroczy Bind with 5...Bg7 and 7...0-0} 13. Bxg7 {[%emt 0:02:47]} Kxg7 {[%emt 0:00:09]} 14. f4 $146 {[%emt 0:00:24]} ({Predecessor:} 14. Qd4+ Kg8 15. Rae1 a5 16. f4 Qb6 17. Qxb6 Nxb6 18. Nd5 Bxd5 19. exd5 Rfc8 20. Bd3 {1-0 (42) Kazimova,N (2302)-Pirverdiyev,A (2343) Baku 2016}) 14... a5 {[%emt 0:04:54]} 15. Qc2 {[%emt 0:07:41]} a4 {[%emt 0:05:46]} 16. Nd5 {[%emt 0:03:58]} ({White should play} 16. Rab1 $11) 16... Bxd5 {[%emt 0:07:29]} 17. exd5 {[%emt 0:06:54]} Qb6+ {[%emt 0:06:44]} 18. Kh1 {[%emt 0:00:50]} axb3 {[%emt 0:00:33]} 19. axb3 {[%emt 0:00:15]} Rxa1 {[%emt 0:08:49]} 20. Rxa1 {[%emt 0:00:15]} Qd4 {[%emt 0:00:09]} 21. Rf1 {[%emt 0:03:28]} Ra8 {[%emt 0:00:54]} 22. h3 {[%emt 0:05:16]} Ra1 {[%emt 0:04:39]} 23. Rxa1 {[%emt 0:00:57]} Qxa1+ {[%emt 0:00:06]} 24. Kh2 {[%emt 0:00:08]} (24. Bd1 $17) 24... Qd4 {[%emt 0:00:32]} 25. Kg3 {[%emt 0:05:10]} Qe3+ {[%emt 0:00:32]} 26. Bf3 {[%emt 0:00:20]} Qe1+ {[%emt 0:00:56]} (26... Nc5 $19 {is more deadly.} 27. Qb2+ Kg8) 27. Qf2 {[%emt 0:03:07]} Qxf2+ $2 {[%emt 0:02:35]} (27... Qc3 $17 28. Kh2 Qxb3 29. Qd4+ f6) 28. Kxf2 {[%emt 0:00:12]} Nc5 {[%emt 0:00:12]} 29. Bd1 {[%emt 0:01:05]} Kf8 {[%emt 0:15:48]} 30. Ke3 {[%emt 0:00:32]} Ke8 {[%emt 0:00:15]} 31. Kd4 {[%emt 0:00:40]} Kd8 {[%emt 0:00:18]} 32. g4 {[%emt 0:01:03]} f6 {[%emt 0:02:02]} 33. h4 {[%emt 0:02:09]} e5+ {[%emt 0:15:18]} 34. dxe6 {[%emt 0:03:03]} Nxe6+ {[%emt 0:00:08]} 35. Kd5 {[%emt 0:01:44]} Ke7 {[%emt 0:00:46]} 36. f5 {[%emt 0:00:37]} gxf5 {[%emt 0:04:48]} 37. gxf5 {[%emt 0:00:08]} Nc7+ {[%emt 0:00:08]} 38. Kd4 {[%emt 0:01:19]} b6 {[%emt 0:01:21]} 39. Bf3 {[%emt 0:04:00]} Kd7 {[%emt 0:00:19]} 40. Bd5 {[%emt 0:00:00]} Na6 {[%emt 0:00:00]} 41. Be6+ {[%emt 0:03:51]} Ke7 {[%emt 0:01:39]} 42. Bc8 {[%emt 0:01:48]} Nc7 {[%emt 0:03:38]} 43. b4 {[%emt 0:01:26]} Kd8 {[%emt 0:01:22]} 44. Bb7 {[%emt 0:00:14]} Ke7 {[%emt 0:00:37]} 45. Ke4 {[%emt 0:01:00]} Kd8 {[%emt 0:01:19]} 46. Bd5 {[%emt 0:02:17]} Nxd5 $2 {[%emt 0:01:18]} (46... Na6 $11) 47. Kxd5 {[%emt 0:00:21]} Kd7 {[%emt 0:00:05]} 48. h5 {[%emt 0:00:06]} h6 {[%emt 0:00:08]} 49. b5 {[%emt 0:00:43]} Ke7 {[%emt 0:01:42]} 50. Kc6 {[%emt 0:00:05]} Kd8 {[%emt 0:00:12]} 51. Kxd6 {[%emt 0:00:15]} Kc8 {[%emt 0:00:06]} 52. Kc6 {[%emt 0:00:19]} Kd8 {[%emt 0:00:04]} 53. Kxb6 {[%emt 0:00:06]} Kd7 {[%emt 0:00:04]} 54. c5 {[%emt 0:00:07]} Kc8 {[%emt 0:00:04]} 55. Kc6 {[%emt 0:00:11]} Kb8 {[%emt 0:00:04]} 56. Kd6 {[%emt 0:00:06]} Kb7 {[%emt 0:00:04]} 57. Ke6 {[%emt 0:00:07]} Kc7 {[%emt 0:00:05]} 58. Kxf6 {[%emt 0:00:05]} 1-0

[Event "FIDE WCCC G12 2018"]
[Site "Santiago de Compostela"]
[Date "2018.11.11"]
[Round "7"]
[White "Omonova, Umida"]
[Black "Oz, Irem Ezra"]
[Result "1-0"]
[ECO "B42"]
[WhiteElo "1854"]
[BlackElo "1564"]
[Annotator "NA RC"]
[PlyCount "103"]
[EventDate "2018.11.04"]
[EventType "swiss"]
[EventCountry "ESP"]
[SourceTitle "playchess.com"]
[Source "ChessBase"]
[SourceQuality "1"]
[TimeControl "40/5400+30:1800+30"]

1. e4 {[%emt 0:00:40]} c5 {[%emt 0:00:12]} 2. Nf3 {[%emt 0:00:50]} e6 {[%emt 0:00:44]} 3. d4 {[%emt 0:00:14]} cxd4 {[%emt 0:00:37]} 4. Nxd4 {[%emt 0:00:25]} a6 {[%emt 0:00:44] LiveBook: 25624 Games} 5. Bd3 {[%emt 0:01:32]} Bc5 {[%emt 0:00:57]} 6. Nb3 {[%emt 0:00:10]} Ba7 {[%emt 0:00:54]} 7. Qe2 {[%emt 0:01:00]} d6 {[%emt 0:01:58]} 8. Nc3 {[%emt 0:00:27] B42: Sicilian: Kan Variation: 5 Bd3} e5 {[%emt 0:02:21]} (8... Ne7 9. Be3 Nbc6 10. f4 b5 11. a4 b4 12. Nd1 Ng6 13. g3 O-O 14. Bxa7 Rxa7 15. Ne3 Na5 16. Nxa5 Qxa5 17. b3 Qc5 {1-0 (46) Svidler,P (2765)-Romanov,E (2626) St Petersburg 2017}) 9. O-O {[%emt 0:05:15]} Ne7 {[%emt 0:00:45]} 10. Kh1 {[%emt 0:01:19]} O-O {[%emt 0:01:39]} 11. f4 {[%emt 0:00:46]} exf4 $1 {[%emt 0:00:56]} 12. Bxf4 {[%emt 0:00:03]} Ng6 {[%emt 0:01:34]} 13. Bg3 $146 {[%emt 0:00:22]} ({Predecessor:} 13. Be3 Bxe3 14. Qxe3 Nc6 15. Nd5 {0-1 (52) Hamid,R (2169)-Ortiz Aguirre,N (2184) Turin 2006}) 13... Nc6 {[%emt 0:01:13]} 14. Bc4 {[%emt 0:08:13]} Nge5 {[%emt 0:01:44]} 15. Bd5 {[%emt 0:01:11]} Qc7 {[%emt 0:05:47]} 16. h3 {[%emt 0:05:20]} Be6 {[%emt 0:03:13]} 17. Rad1 {[%emt 0:07:28]} Rad8 {[%emt 0:09:10]} 18. Bh4 {[%emt 0:01:23]} Rd7 {[%emt 0:08:30]} 19. Qh5 {[%emt 0:02:39]} Qb8 {[%emt 0:07:06]} 20. Ne2 {[%emt 0:05:18]} Bxd5 {[%emt 0:04:31]} 21. exd5 {[%emt 0:00:19]} Ne7 {[%emt 0:02:07]} 22. Ned4 {[%emt 0:08:19]} N7g6 {[%emt 0:12:05]} 23. Nf5 {[%emt 0:01:16]} Nxh4 {[%emt 0:02:15]} 24. Qxh4 {[%emt 0:00:33]} Ng6 {[%emt 0:00:45]} 25. Qg3 {[%emt 0:00:24]} Qd8 {[%emt 0:09:20]} 26. Rde1 {[%emt 0:02:04]} Re8 {[%emt 0:04:13]} 27. Rxe8+ {[%emt 0:05:31]} Qxe8 {[%emt 0:00:08]} 28. Re1 {[%emt 0:00:08]} Qd8 {[%emt 0:00:23]} 29. Qc3 {[%emt 0:00:38]} Qf8 {[%emt 0:02:56]} 30. Re8 {[%emt 0:02:06]} f6 {[%emt 0:13:14]} 31. Qc8 {[%emt 0:01:36]} Rf7 {[%emt 0:01:18]} 32. Nxd6 {[%emt 0:00:41]} Re7 {[%emt 0:02:11]} 33. Rxf8+ {[%emt 0:00:12]} Nxf8 {[%emt 0:00:05]} 34. Qc3 {[%emt 0:01:00]} Re3 {[%emt 0:00:13]} 35. Qd2 {[%emt 0:00:12]} Re7 {[%emt 0:00:53]} 36. Nc8 {[%emt 0:00:11]} Re8 {[%emt 0:00:12]} 37. Nxa7 {[%emt 0:00:07]} Nd7 $18 {[%emt 0:00:11]} 38. Qb4 {[%emt 0:00:19]} b5 {[%emt 0:00:46]} 39. Nc5 {[%emt 0:00:15]} Nxc5 {[%emt 0:00:11]} 40. Qxc5 {[%emt 0:00:00]} Kf7 {[%emt 0:00:00]} 41. d6 {[%emt 0:00:21]} Re5 {[%emt 0:00:26]} 42. Qc7+ {[%emt 0:00:10]} Kg6 {[%emt 0:00:04]} 43. d7 {[%emt 0:00:05]} Rd5 {[%emt 0:00:14]} 44. d8=Q {[%emt 0:00:31]} Rxd8 {[%emt 0:00:05]} 45. Qxd8 {[%emt 0:00:04]} Kh5 {[%emt 0:00:11]} 46. Nc6 {[%emt 0:00:08]} Kg6 {[%emt 0:00:06]} 47. Qe8+ {[%emt 0:00:03]} Kg5 {[%emt 0:00:06]} 48. Nd4 {[%emt 0:00:06]} Kh6 {[%emt 0:00:11]} 49. h4 {[%emt 0:00:11]} g6 {[%emt 0:00:10]} 50. g4 {[%emt 0:00:23]} Kg7 {[%emt 0:00:07]} 51. Ne6+ {[%emt 0:00:03]} Kh6 {[%emt 0:00:12]} 52. Qf8# {[%emt 0:00:02]} 1-0

[Event "FIDE WCCC G12 2018"]
[Site "Santiago de Compostela"]
[Date "2018.11.11"]
[Round "7"]
[White "Shuqja, Klean"]
[Black "Savitha Shri B"]
[Result "0-1"]
[ECO "B40"]
[WhiteElo "1798"]
[BlackElo "1745"]
[Annotator "NA RC"]
[PlyCount "64"]
[EventDate "2018.11.04"]
[EventType "swiss"]
[EventCountry "ESP"]
[SourceTitle "playchess.com"]
[Source "ChessBase"]
[SourceQuality "1"]
[TimeControl "40/5400+30:1800+30"]

1. e4 {[%emt 0:00:00]} c5 {[%emt 0:00:00]} 2. Nf3 {[%emt 0:00:00]} e6 {[%emt 0:00:00]} 3. d4 {[%emt 0:00:00]} cxd4 {[%emt 0:00:00]} 4. Nxd4 {[%emt 0:00:00]} Nf6 {[%emt 0:00:16]} 5. Nc3 {[%emt 0:00:00]} Nc6 {[%emt 0:00:07]} 6. Be3 {[%emt 0:00:00]} Bb4 {[%emt 0:00:33]} 7. Bd3 {[%emt 0:00:20]} d5 {[%emt 0:00:42]} 8. exd5 {[%emt 0:13:17]} Nxd5 {[%emt 0:00:09]} 9. Nxc6 {[%emt 0:00:16]} bxc6 {[%emt 0:00:05]} 10. Bd2 {[%emt 0:00:31]} O-O {[%emt 0:13:33]} 11. Nxd5 {[%emt 0:13:44]} Bxd2+ {[%emt 0:00:12]} 12. Qxd2 {[%emt 0:00:02]} cxd5 {[%emt 0:00:19]} 13. O-O {[%emt 0:00:03]} e5 {[%emt 0:00:07]} 14. Rfd1 {[%emt 0:08:49]} Be6 {[%emt 0:00:13]} 15. Rac1 {[%emt 0:03:39]} Rc8 {[%emt 0:03:06]} 16. b3 {[%emt 0:10:34]} f5 {[%emt 0:00:49]} 17. Qe1 {[%emt 0:10:48]} Qf6 {[%emt 0:00:43]} 18. c4 {[%emt 0:01:47]} d4 {[%emt 0:04:14]} 19. c5 {[%emt 0:01:05]} Kh8 {[%emt 0:05:11]} 20. b4 {[%emt 0:03:21]} Bd5 {[%emt 0:02:56]} 21. Bc4 {[%emt 0:07:19]} Ba8 {[%emt 0:01:26]} 22. a4 {[%emt 0:03:00]} Qg6 {[%emt 0:01:34]} 23. Bf1 {[%emt 0:00:36]} f4 {[%emt 0:05:15]} 24. b5 {[%emt 0:02:29]} Bf3 {[%emt 0:03:05]} 25. Rd2 {[%emt 0:00:28]} Rf5 {[%emt 0:01:30]} 26. g3 {[%emt 0:05:30]} e4 {[%emt 0:01:28]} 27. Rxd4 {[%emt 0:05:04]} e3 {[%emt 0:38:03]} 28. Bh3 {[%emt 0:07:11]} exf2+ {[%emt 0:01:52]} 29. Qxf2 {[%emt 0:00:33]} fxg3 {[%emt 0:01:13]} 30. hxg3 {[%emt 0:00:50]} Qh6 {[%emt 0:00:33]} 31. Rcd1 {[%emt 0:03:10]} Qxh3 {[%emt 0:13:48]} 32. Qxf3 {[%emt 0:01:01]} Rxf3 0-1

[Event "FIDE WCCC G12 2018"]
[Site "Santiago de Compostela"]
[Date "2018.11.11"]
[Round "7"]
[White "Wagner, Margarethe"]
[Black "Ke, Rianne"]
[Result "0-1"]
[ECO "B76"]
[WhiteElo "1766"]
[BlackElo "1600"]
[Annotator "NA RC"]
[PlyCount "88"]
[EventDate "2018.11.04"]
[EventType "swiss"]
[EventCountry "ESP"]
[SourceTitle "playchess.com"]
[Source "ChessBase"]
[SourceQuality "1"]
[TimeControl "40/5400+30:1800+30"]

1. e4 {[%emt 0:00:00]} c5 {[%emt 0:00:00]} 2. Nf3 {[%emt 0:00:00]} d6 {[%emt 0:00:00]} 3. d4 {[%emt 0:00:00]} cxd4 {[%emt 0:00:00]} 4. Nxd4 {[%emt 0:00:06]} Nf6 {[%emt 0:00:08]} 5. Nc3 {[%emt 0:00:27]} g6 {[%emt 0:00:10]} 6. Be3 {[%emt 0:00:36]} Bg7 {[%emt 0:00:13]} 7. f3 {[%emt 0:01:02]} O-O {[%emt 0:00:07]} 8. Qd2 {[%emt 0:00:48]} Nc6 {[%emt 0:00:05]} 9. g4 {[%emt 0:01:29]} Be6 {[%emt 0:00:37]} 10. h4 {[%emt 0:06:32]} h5 {[%emt 0:02:00]} 11. gxh5 {[%emt 0:06:15]} Nxd4 {[%emt 0:04:53]} 12. Bxd4 {[%emt 0:01:14]} Nxh5 {[%emt 0:00:41]} 13. O-O-O {[%emt 0:06:48]} Qa5 {[%emt 0:04:31]} 14. a3 {[%emt 0:11:50]} Rab8 {[%emt 0:10:25]} 15. Bxg7 {[%emt 0:03:08]} Kxg7 {[%emt 0:01:04]} 16. Qd4+ {[%emt 0:05:07]} Kh7 {[%emt 0:05:29]} 17. Rg1 {[%emt 0:03:10]} Qc5 {[%emt 0:10:23]} 18. Qxc5 {[%emt 0:03:44]} dxc5 {[%emt 0:00:04]} 19. Nb5 {[%emt 0:01:49]} a6 {[%emt 0:03:23]} 20. Nc7 {[%emt 0:01:19]} Nf4 {[%emt 0:00:29]} 21. Nxe6 {[%emt 0:03:07]} Nxe6 {[%emt 0:00:22]} 22. Rd7 {[%emt 0:01:07]} Rfd8 {[%emt 0:05:27]} 23. Rxd8 {[%emt 0:07:43]} Nxd8 {[%emt 0:08:36]} 24. Bh3 {[%emt 0:04:39]} Nc6 {[%emt 0:04:30]} 25. Rg5 {[%emt 0:03:06]} e5 {[%emt 0:06:59]} 26. c3 {[%emt 0:03:49]} Rd8 {[%emt 0:05:30]} 27. Kc2 {[%emt 0:00:57]} b5 {[%emt 0:02:06]} 28. Bf1 {[%emt 0:02:33]} f6 {[%emt 0:02:32]} 29. Rg2 {[%emt 0:01:18]} Na5 {[%emt 0:06:18]} 30. b3 {[%emt 0:05:12]} c4 {[%emt 0:04:35]} 31. bxc4 {[%emt 0:02:46]} Nxc4 {[%emt 0:02:26]} 32. Bxc4 {[%emt 0:00:17]} bxc4 {[%emt 0:00:04]} 33. Rf2 {[%emt 0:01:19]} Rd3 {[%emt 0:03:03]} 34. f4 {[%emt 0:02:14]} Re3 {[%emt 0:00:15]} 35. fxe5 {[%emt 0:00:36]} fxe5 {[%emt 0:00:04]} 36. Rf6 {[%emt 0:01:49]} Rxe4 {[%emt 0:00:41]} 37. Rxa6 {[%emt 0:00:08]} Rxh4 {[%emt 0:00:08]} 38. Re6 {[%emt 0:01:20]} Rh2+ {[%emt 0:04:48]} 39. Kb1 {[%emt 0:02:11]} Re2 {[%emt 0:00:46]} 40. a4 {[%emt 0:00:00]} g5 {[%emt 0:00:00]} 41. Rf6 {[%emt 0:08:18]} g4 {[%emt 0:03:22]} 42. Rf1 {[%emt 0:00:43]} g3 {[%emt 0:00:55]} 43. a5 {[%emt 0:03:33]} Rf2 {[%emt 0:00:54]} 44. Rg1 {[%emt 0:01:45]} g2 {[%emt 0:00:15]} 0-1

[Event "FIDE WCCC G12 2018"]
[Site "Santiago de Compostela"]
[Date "2018.11.11"]
[Round "7"]
[White "Dakic, Marta"]
[Black "Menon, Gauri"]
[Result "1-0"]
[ECO "C54"]
[WhiteElo "1756"]
[BlackElo "1592"]
[Annotator "NA RC"]
[PlyCount "89"]
[EventDate "2018.11.04"]
[EventType "swiss"]
[EventCountry "ESP"]
[SourceTitle "playchess.com"]
[Source "ChessBase"]
[SourceQuality "1"]
[TimeControl "40/5400+30:1800+30"]

1. e4 {[%emt 0:00:00]} e5 {[%emt 0:00:00]} 2. Nf3 {[%emt 0:00:00]} Nc6 {[%emt 0:00:00]} 3. Bc4 {[%emt 0:00:00]} Bc5 {[%emt 0:00:00]} 4. c3 {[%emt 0:00:20]} Nf6 {[%emt 0:00:11]} 5. d3 {[%emt 0:00:19]} a6 {[%emt 0:00:28]} 6. O-O {[%emt 0:01:35]} Ba7 {[%emt 0:00:31]} 7. Bb3 {[%emt 0:01:10]} d6 {[%emt 0:00:08]} 8. h3 {[%emt 0:01:07]} h6 {[%emt 0:01:07]} 9. Re1 {[%emt 0:03:08]} O-O {[%emt 0:00:25]} 10. Be3 {[%emt 0:02:27]} Bxe3 {[%emt 0:04:43]} 11. Rxe3 {[%emt 0:00:15]} Re8 {[%emt 0:01:46]} 12. Nbd2 {[%emt 0:08:33]} d5 {[%emt 0:10:11]} 13. Re1 {[%emt 0:05:35]} d4 {[%emt 0:05:30]} 14. c4 {[%emt 0:08:58]} Nb4 {[%emt 0:10:16]} 15. Nf1 {[%emt 0:01:28]} c5 {[%emt 0:03:00]} 16. a3 {[%emt 0:00:15]} Nc6 {[%emt 0:00:19]} 17. Ng3 {[%emt 0:02:10]} g6 {[%emt 0:08:39]} 18. Qd2 {[%emt 0:03:49]} Kg7 {[%emt 0:01:43]} 19. Ba4 {[%emt 0:05:42]} Bd7 {[%emt 0:13:17]} 20. b4 {[%emt 0:04:52]} Na7 {[%emt 0:06:57]} 21. Bb3 {[%emt 0:07:03]} b6 {[%emt 0:07:48]} 22. bxc5 {[%emt 0:06:00]} bxc5 {[%emt 0:01:00]} 23. Qc2 {[%emt 0:00:54]} Qa5 {[%emt 0:05:33]} 24. Reb1 {[%emt 0:03:47]} Rab8 {[%emt 0:01:42]} 25. Qc1 {[%emt 0:06:53]} Bc6 {[%emt 0:02:03]} 26. Nh4 {[%emt 0:02:52]} Bd7 {[%emt 0:01:49]} 27. f4 {[%emt 0:01:29]} exf4 {[%emt 0:06:35]} 28. Qxf4 {[%emt 0:00:08]} Qc3 {[%emt 0:00:34]} 29. e5 {[%emt 0:01:56]} Nh7 {[%emt 0:00:57]} 30. Rf1 {[%emt 0:01:53]} Rf8 {[%emt 0:02:11]} 31. e6 {[%emt 0:07:15]} Bxe6 {[%emt 0:02:15]} 32. Qe5+ {[%emt 0:00:14]} f6 {[%emt 0:03:06]} 33. Qxe6 {[%emt 0:00:25]} Qxb3 {[%emt 0:00:08]} 34. Qe7+ {[%emt 0:00:31]} Rf7 {[%emt 0:00:31]} 35. Qe4 {[%emt 0:05:32]} f5 {[%emt 0:00:48]} 36. Qe5+ {[%emt 0:00:28]} Nf6 {[%emt 0:00:14]} 37. Nhxf5+ {[%emt 0:05:07]} gxf5 {[%emt 0:00:11]} 38. Nh5+ {[%emt 0:00:03]} Kf8 {[%emt 0:01:40]} 39. Qd6+ {[%emt 0:00:22]} Kg8 {[%emt 0:00:15]} 40. Nxf6+ {[%emt 0:00:00]} Kg7 {[%emt 0:00:00]} 41. Rf3 {[%emt 0:02:14]} Qb7 {[%emt 0:05:18]} 42. Rxf5 {[%emt 0:02:36]} Qe7 {[%emt 0:05:02]} 43. Qg3+ {[%emt 0:00:51]} Kh8 {[%emt 0:00:35]} 44. Qxb8+ {[%emt 0:00:05]} Kg7 {[%emt 0:00:08]} 45. Qg8# 1-0